bitfinex/quotes_BTCUSD_20251001
["timestamp","ask_amount","ask_price","bid_price","bid_amount"]
[1759345216148,0.62740823,117340.0,117330.0,0.25568]
[1759345218295,0.96740823,117340.0,117330.0,0.25568]
[1759345218494,0.98338398,117340.0,117330.0,0.25568]
[1759345220759,1.01353588,117340.0,117330.0,0.25568]
[1759345220960,1.03193897,117340.0,117330.0,0.25568]
[1759345221697,1.36492651,117340.0,117330.0,0.25568]
[1759345222330,1.03193897,117340.0,117330.0,0.25568]
[1759345229985,0.75750707,117340.0,117330.0,0.25568]
[1759345230201,1.06889398,117340.0,117330.0,0.25621]
[1759345230445,1.07193398,117340.0,117330.0,0.25568]
[1759345231057,1.05291823,117340.0,117330.0,0.25621]
[1759345233880,1.05595363,117340.0,117330.0,0.25568]
[1759345234648,0.96727363,117340.0,117330.0,0.25568]
[1759345234849,1.05595363,117340.0,117330.0,0.25568]
[1759345239986,1.06185363,117340.0,117330.0,0.25568]
[1759345241143,1.0618575,117340.0,117330.0,0.25568]
[1759345241731,1.0618575,117340.0,117330.0,0.0280806]
[1759345258842,1.11041787,117340.0,117330.0,0.0280806]
[1759345260616,1.11042184,117340.0,117330.0,0.0280806]
[1759345280684,1.12640348,117340.0,117330.0,0.0280806]
[1759345291070,1.12540348,117340.0,117330.0,0.0280806]
[1759345295920,1.12540348,117340.0,117330.0,0.02402402]
[1759345301226,0.17050298,117300.0,117290.0,0.08369131]
[1759345301498,0.17050298,117300.0,117290.0,0.17176752]
[1759345301705,0.17050298,117300.0,117290.0,0.00325]
[1759345302130,0.17050298,117300.0,117290.0,0.18682475]
[1759345302363,0.17050298,117300.0,117290.0,0.17376752]
[1759345302596,0.17050298,117300.0,117290.0,0.18676738]
[1759345303870,0.4144316,117310.0,117290.0,0.18676738]
[1759345304018,0.17050298,117300.0,117290.0,0.18551738]
[1759345304709,0.17050298,117300.0,117290.0,0.18676738]
[1759345306066,0.17050298,117300.0,117290.0,0.18668404]
[1759345306275,0.56328934,117310.0,117290.0,0.18664237]
[1759345306498,0.56328934,117310.0,117300.0,0.00103833]
[1759345306706,0.56328934,117310.0,117300.0,0.00270833]
[1759345310921,0.64007979,117310.0,117300.0,0.00270833]
[1759345311121,0.1790108,117320.0,117300.0,0.1902616]
[1759345311323,0.17048844,117310.0,117300.0,0.2350671]
[1759345311569,0.17048844,117310.0,117300.0,0.21801681]
[1759345311939,0.17048844,117310.0,117300.0,0.21905681]
[1759345314224,0.41431771,117320.0,117310.0,0.17048844]
[1759345314459,0.68925482,117330.0,117320.0,0.17047391]
[1759345314460,0.4455,117330.0,117320.0,0.17047391]
[1759345314683,0.4455,117330.0,117320.0,0.17318391]
[1759345314900,0.4455,117330.0,117320.0,0.41702391]
[1759345317402,0.4455,117330.0,117320.0,0.67272391]
[1759345318976,0.23995165,117340.0,117320.0,0.67272391]
[1759345319200,0.17634806,117340.0,117330.0,0.18854531]
[1759345319400,0.17634806,117340.0,117330.0,0.44423531]
[1759345319598,0.17634806,117340.0,117330.0,0.42885938]
[1759345320452,0.17639469,117340.0,117330.0,0.42885938]
[1759345321457,0.17639149,117340.0,117330.0,0.42885938]
[1759345325988,0.17639149,117340.0,117330.0,0.2584]
[1759345326321,0.17639149,117340.0,117330.0,0.42885938]
[1759345326774,0.17639149,117340.0,117330.0,0.2584]
[1759345327413,0.17639149,117340.0,117330.0,0.42885938]
[1759345327977,0.17639149,117340.0,117330.0,0.50212]
[1759345328415,0.17639149,117340.0,117330.0,0.75126642]
[1759345328635,0.17639149,117340.0,117330.0,0.67257938]
[1759345328844,0.00594663,117340.0,117330.0,0.67257938]
[1759345329020,0.17639149,117340.0,117330.0,0.67257938]
[1759345329219,0.17639149,117340.0,117330.0,0.69817358]
[1759345331440,0.17639149,117340.0,117330.0,0.69772893]
[1759345333480,0.17639149,117340.0,117330.0,0.7864404]
[1759345334642,0.17639149,117340.0,117330.0,0.69772893]
[1759345341987,0.17639149,117340.0,117330.0,0.69713358]
[1759345342208,0.17639149,117340.0,117330.0,0.69773358]
[1759345342419,0.17639149,117340.0,117330.0,0.69713358]
[1759345343059,0.17639149,117340.0,117330.0,0.5266742]
[1759345343269,0.17639149,117340.0,117330.0,0.69713358]
[1759345343470,0.17639149,117340.0,117330.0,0.69773358]
[1759345343705,0.17639149,117340.0,117330.0,0.5272742]
[1759345343929,0.17639149,117340.0,117330.0,0.69773358]
[1759345344608,0.17639149,117340.0,117330.0,0.69713358]
[1759345345310,0.17639149,117340.0,117330.0,0.69773358]
[1759345345955,0.17639149,117340.0,117330.0,0.69713358]
[1759345346919,0.17639149,117340.0,117330.0,0.69773358]
[1759345347406,0.17639149,117340.0,117330.0,0.69713358]
[1759345348561,0.17639149,117340.0,117330.0,0.69773358]
[1759345349001,0.17639149,117340.0,117330.0,0.69713358]
[1759345349542,0.17639149,117340.0,117330.0,0.69773358]
[1759345350400,0.17639149,117340.0,117330.0,0.69713358]
[1759345350608,0.17639149,117340.0,117330.0,0.69773358]
[1759345350847,0.17639149,117340.0,117330.0,0.69713358]
[1759345351483,0.17639149,117340.0,117330.0,0.69773358]
[1759345351917,0.17844149,117340.0,117330.0,0.69713358]
[1759345352137,0.17639149,117340.0,117330.0,0.69713358]
[1759345352506,0.17639149,117340.0,117330.0,0.69773358]
[1759345353147,0.17826769,117340.0,117330.0,0.69773358]
[1759345353346,0.17826769,117340.0,117330.0,0.78644505]
[1759345355390,0.17826769,117340.0,117330.0,0.69773358]
[1759345358941,0.17826769,117340.0,117330.0,0.69713358]
[1759345359168,0.17826769,117340.0,117330.0,0.69773358]
[1759345360012,0.17826769,117340.0,117330.0,0.69713358]
[1759345360782,0.17826769,117340.0,117330.0,0.69773358]
[1759345362189,0.00782283,117340.0,117330.0,1.12644505]
[1759345362395,0.00782283,117340.0,117330.0,1.27258434]
[1759345362605,0.00782283,117340.0,117330.0,1.21155505]
[1759345362803,0.00782283,117340.0,117330.0,9.54441209]
[1759345363222,0.00782283,117340.0,117330.0,9.65079306]
[1759345363639,0.00782283,117340.0,117330.0,9.57456399]
[1759345363847,0.00782283,117340.0,117330.0,9.64347893]
[1759345364089,0.00782283,117340.0,117330.0,9.56724986]
[1759345364303,0.00782283,117340.0,117330.0,9.66912408]
[1759345364508,0.00782283,117340.0,117330.0,10.02380408]
[1759345364889,1e-08,117390.0,117380.0,0.17038677]
[1759345365104,1e-08,117390.0,117380.0,0.69535544]
[1759345365105,4.667e-05,117390.0,117380.0,0.69535544]
[1759345365309,0.17041893,117390.0,117380.0,0.67831677]
[1759345365480,0.17041893,117390.0,117380.0,0.50793]
[1759345365689,0.17041893,117390.0,117380.0,0.70390138]
[1759345366670,0.17041893,117390.0,117380.0,0.71611391]
[1759345367677,0.17041893,117390.0,117380.0,0.80476412]
[1759345368119,0.17041893,117390.0,117380.0,0.71551391]
[1759345368750,0.17041893,117390.0,117380.0,0.71611391]
[1759345368975,0.17246893,117390.0,117380.0,0.71551391]
[1759345369204,0.17041893,117390.0,117380.0,0.71551391]
[1759345369419,4.667e-05,117390.0,117380.0,0.71551391]
[1759345369701,4.667e-05,117390.0,117380.0,0.71611391]
[1759345370786,0.00113008,117390.0,117380.0,0.71611391]
[1759345371202,0.00113008,117390.0,117380.0,0.71551391]
[1759345371619,0.00113008,117390.0,117380.0,0.71611391]
[1759345373168,0.00113008,117390.0,117380.0,0.71551391]
[1759345373616,0.00113008,117390.0,117380.0,0.71611391]
[1759345373829,0.00113008,117390.0,117380.0,0.71551391]
[1759345374291,0.00113008,117390.0,117380.0,0.71611391]
[1759345375822,0.00113008,117390.0,117380.0,0.6905293]
[1759345377381,0.00113008,117390.0,117380.0,0.6899293]
[1759345377992,0.00113008,117390.0,117380.0,0.6905293]
[1759345378213,0.00113008,117390.0,117380.0,0.6899293]
[1759345378840,0.17350234,117390.0,117380.0,0.6889693]
[1759345379043,0.17674234,117390.0,117380.0,0.6888093]
[1759345379834,0.17350234,117390.0,117380.0,0.6897693]
[1759345381303,0.17150234,117390.0,117380.0,0.6897693]
[1759345384372,0.17150234,117390.0,117380.0,0.6887693]
[1759345384373,0.17674234,117390.0,117380.0,0.6887693]
[1759345385445,0.17350234,117390.0,117380.0,0.6897293]
[1759345387598,0.17150234,117390.0,117380.0,0.46320273]
[1759345388244,0.17674234,117390.0,117380.0,0.46224273]
[1759345388817,0.17674234,117390.0,117380.0,0.46320273]
[1759345389014,0.17350234,117390.0,117380.0,0.46320273]
[1759345390178,0.17674234,117390.0,117380.0,0.46224273]
[1759345391258,0.17674234,117390.0,117380.0,0.46320273]
[1759345391837,0.17350234,117390.0,117380.0,0.46320273]
[1759345392236,0.18148191,117390.0,117380.0,0.46320273]
[1759345394014,0.00910965,117390.0,117380.0,0.46320273]
[1759345394560,0.17948191,117390.0,117380.0,0.46320273]
[1759345394754,0.00113008,117390.0,117380.0,0.46320273]
[1759345397690,0.17150234,117390.0,117380.0,0.46320273]
[1759345399054,0.00113008,117390.0,117380.0,0.46320273]
[1759345399996,0.17350234,117390.0,117380.0,0.46312273]
[1759345400248,0.17656234,117390.0,117380.0,0.46216273]
[1759345400870,0.17656234,117390.0,117380.0,0.45476502]
[1759345401073,0.17656234,117390.0,117380.0,0.45572502]
[1759345401281,0.17350234,117390.0,117380.0,0.45572502]
[1759345404956,0.17365424,117390.0,117380.0,0.45572502]
[1759345406080,0.17350234,117390.0,117380.0,0.45557312]
[1759345406868,0.17150234,117390.0,117380.0,0.45557312]
[1759345409045,0.00113008,117390.0,117380.0,0.45557312]
[1759345409249,0.00113008,117390.0,117380.0,0.45617312]
[1759345409681,0.00113008,117390.0,117380.0,0.45557312]
[1759345415046,0.17150234,117390.0,117380.0,0.45557312]
[1759345415254,0.00113008,117390.0,117380.0,0.45557312]
[1759345416364,0.00113008,117390.0,117380.0,0.21237312]
[1759345416546,0.00113008,117390.0,117380.0,0.45549312]
[1759345416758,0.17150234,117390.0,117380.0,0.45549312]
[1759345417337,0.00113008,117390.0,117380.0,0.45549312]
[1759345417734,0.17150234,117390.0,117380.0,0.45549312]
[1759345418533,0.00113008,117390.0,117380.0,0.45549312]
[1759345418735,0.00113008,117390.0,117380.0,0.45601955]
[1759345419345,0.17150234,117390.0,117380.0,0.45601955]
[1759345420372,0.17653234,117390.0,117380.0,0.04155278]
[1759345420571,0.2961607,117390.0,117380.0,0.28463278]
[1759345421555,0.2961607,117390.0,117380.0,0.04155278]
[1759345421859,0.2961607,117390.0,117380.0,0.28463278]
[1759345424300,0.2961607,117390.0,117380.0,0.45501955]
[1759345424484,0.26164234,117390.0,117380.0,0.45501955]
[1759345425394,0.25661234,117390.0,117380.0,0.45597955]
[1759345426555,0.25868234,117390.0,117380.0,0.45597955]
[1759345430671,0.25661234,117390.0,117380.0,0.45597955]
[1759345432434,0.25866234,117390.0,117380.0,0.45597955]
[1759345433287,0.25661234,117390.0,117380.0,0.45597955]
[1759345433422,0.00113008,117390.0,117380.0,0.45597955]
[1759345433625,0.00113008,117390.0,117380.0,0.45657955]
[1759345434054,0.00113008,117390.0,117380.0,0.52536474]
[1759345434487,0.00113008,117390.0,117380.0,0.45657955]
[1759345434694,0.00113008,117390.0,117380.0,0.79657955]
[1759345435794,0.00113008,117390.0,117380.0,0.82216155]
[1759345442967,0.00113008,117390.0,117380.0,0.57908155]
[1759345443193,0.00113008,117390.0,117380.0,0.66768155]
[1759345443711,0.00113008,117390.0,117380.0,0.75639302]
[1759345451786,0.00113008,117390.0,117380.0,0.75407788]
[1759345458803,0.00113008,117390.0,117380.0,0.66547788]
[1759345459006,0.00113008,117390.0,117380.0,0.75407788]
[1759345463229,0.00113008,117390.0,117380.0,0.81495336]
[1759345464230,0.00113008,117390.0,117380.0,0.72635336]
[1759345464529,0.00113008,117390.0,117380.0,0.81495336]
[1759345466577,0.00113008,117390.0,117380.0,8.95744108]
[1759345467059,0.00113008,117390.0,117380.0,8.8965656]
[1759345469351,0.00113008,117390.0,117380.0,8.9573671]
[1759345471123,0.00113008,117390.0,117380.0,8.58266226]
[1759345471333,0.00113008,117390.0,117380.0,8.75304903]
[1759345471540,0.00113008,117390.0,117380.0,8.98139321]
[1759345474214,0.00113008,117390.0,117380.0,8.99193017]
[1759345485469,0.00113008,117390.0,117380.0,8.99172956]
[1759345486859,0.00113008,117390.0,117380.0,9.08032956]
[1759345488232,0.00628008,117390.0,117380.0,9.05017766]
[1759345488438,0.00628008,117390.0,117380.0,9.29289766]
[1759345488630,0.00113008,117390.0,117380.0,9.29289766]
[1759345498209,0.00113008,117390.0,117380.0,8.96157766]
[1759345498425,0.00113008,117390.0,117380.0,9.29285766]
[1759345513038,0.00622008,117390.0,117380.0,9.29285766]
[1759345513222,0.00313008,117390.0,117380.0,9.29285766]
[1759345513426,0.00622008,117390.0,117380.0,9.29277766]
[1759345513628,0.00113008,117390.0,117380.0,9.29277766]
[1759345519607,0.00113008,117390.0,117380.0,9.32288956]
[1759345545936,0.00113008,117390.0,117380.0,8.99172956]
[1759345546144,0.00113008,117390.0,117380.0,9.32276956]
[1759345550702,0.00113008,117390.0,117380.0,9.32576956]
[1759345561775,0.00113008,117390.0,117380.0,9.35300866]
[1759345562158,0.00113008,117390.0,117380.0,9.42923773]
[1759345563550,0.00113008,117390.0,117380.0,9.35300866]
[1759345564788,0.00113008,117390.0,117380.0,9.42923773]
[1759345565404,0.00113008,117390.0,117380.0,9.35300866]
[1759345566211,0.00113008,117390.0,117380.0,9.42923773]
[1759345567290,0.00113008,117390.0,117380.0,9.35300866]
[1759345570415,0.00028,117400.0,117390.0,0.51224218]
[1759345570599,0.00028,117400.0,117390.0,9.11023184]
[1759345571222,0.00049661,117400.0,117390.0,9.13581076]
[1759345571987,0.00567661,117400.0,117390.0,9.13581076]
[1759345572755,0.00049661,117400.0,117390.0,9.13581076]
[1759345574325,0.00049661,117400.0,117390.0,9.22441076]
[1759345579445,0.00567661,117400.0,117390.0,9.22441076]
[1759345580005,0.00049661,117400.0,117390.0,9.22441076]
[1759345580905,0.00250661,117400.0,117390.0,9.22441076]
[1759345581120,0.00049661,117400.0,117390.0,9.22441076]
[1759345582025,0.00572661,117400.0,117390.0,9.22441076]
[1759345582241,0.00049661,117400.0,117390.0,9.22441076]
[1759345584837,0.00250661,117400.0,117390.0,9.22441076]
[1759345585040,0.00049661,117400.0,117390.0,9.22441076]
[1759345588336,0.00585661,117400.0,117390.0,9.22441076]
[1759345588658,0.00049661,117400.0,117390.0,9.22441076]
[1759345589534,0.00049661,117400.0,117390.0,8.6513294]
[1759345589724,0.00049661,117400.0,117390.0,8.82170166]
[1759345595600,0.00049661,117400.0,117390.0,8.73310166]
[1759345597162,0.00585661,117400.0,117390.0,8.73310166]
[1759345597471,0.00263661,117400.0,117390.0,8.73310166]
[1759345597795,0.00049661,117400.0,117390.0,8.73310166]
[1759345599521,0.00049661,117400.0,117390.0,8.79394084]
[1759345600891,0.00263661,117400.0,117390.0,8.79394084]
[1759345601094,0.00585661,117400.0,117390.0,8.79394084]
[1759345602277,0.00263661,117400.0,117390.0,8.79394084]
[1759345603084,0.00585661,117400.0,117390.0,8.79412185]
[1759345603240,0.00263661,117400.0,117390.0,8.79412185]
[1759345603435,0.00049661,117400.0,117390.0,8.79412185]
[1759345612743,0.00049661,117400.0,117390.0,8.75485137]
[1759345614040,0.00049661,117400.0,117390.0,8.51253137]
[1759345614041,0.00549661,117400.0,117390.0,8.51253137]
[1759345614249,0.00549661,117400.0,117390.0,0.75465137]
[1759345614447,0.00549661,117400.0,117390.0,0.75461137]
[1759345615403,0.00549661,117400.0,117390.0,0.51253137]
[1759345615657,0.00549661,117400.0,117390.0,0.75461137]
[1759345624908,0.00049661,117400.0,117390.0,0.75461137]
[1759345625117,0.00049661,117400.0,117390.0,0.84332284]
[1759345627511,0.00049661,117400.0,117390.0,8.84332284]
[1759345630719,0.00049661,117400.0,117390.0,8.75461137]
[1759345632756,0.00049661,117400.0,117390.0,8.84321137]
[1759345638411,0.00049661,117400.0,117390.0,9.29847327]
[1759345638649,0.00049661,117400.0,117390.0,9.26487319]
[1759345638827,0.00049661,117400.0,117390.0,9.34110226]
[1759345639151,0.00049661,117400.0,117390.0,9.42981373]
[1759345639357,0.00049661,117400.0,117390.0,9.49445729]
[1759345639560,1e-08,117400.0,117390.0,9.49445729]
[1759345639775,7e-05,117410.0,117400.0,0.19759684]
[1759345639971,0.00011664,117410.0,117400.0,8.85621805]
[1759345640190,0.00011664,117410.0,117400.0,8.89548853]
[1759345640323,0.0002,117430.0,117420.0,0.54048063]
[1759345640532,0.00024663,117430.0,117420.0,9.6330436]
[1759345640977,0.00024663,117430.0,117420.0,9.63645288]
[1759345641572,0.00024663,117430.0,117420.0,9.63663389]
[1759345641778,0.00024663,117430.0,117420.0,9.72534536]
[1759345644412,0.00024663,117430.0,117420.0,9.66462381]
[1759345644837,0.00024663,117430.0,117420.0,9.72534536]
[1759345645403,0.00024663,117430.0,117420.0,9.39290238]
[1759345646193,0.00024663,117430.0,117420.0,9.06230238]
[1759345646396,0.00024663,117430.0,117420.0,9.30390239]
[1759345647714,0.00089629,117430.0,117420.0,9.30390239]
[1759345649072,0.00089629,117430.0,117420.0,9.33177032]
[1759345653338,0.00089629,117430.0,117420.0,9.30390239]
[1759345654743,0.00089629,117430.0,117420.0,9.39363239]
[1759345654962,0.00089629,117430.0,117420.0,9.30390239]
[1759345657747,0.00089629,117430.0,117420.0,9.30382239]
[1759345661204,0.00299629,117430.0,117420.0,8.97338239]
[1759345661389,0.00607629,117430.0,117420.0,9.30382239]
[1759345661754,0.00089629,117430.0,117420.0,9.30382239]
[1759345665051,0.00089629,117430.0,117420.0,9.11097066]
[1759345665276,0.00089629,117430.0,117420.0,9.28129939]
[1759345666176,0.00607629,117430.0,117420.0,8.74688602]
[1759345666407,0.00607629,117430.0,117420.0,9.07728602]
[1759345666870,0.00299629,117430.0,117420.0,9.07728602]
[1759345667329,0.00607629,117430.0,117420.0,9.07728602]
[1759345667562,0.00089629,117430.0,117420.0,9.07728602]
[1759345667789,0.00089629,117430.0,117420.0,9.16599749]
[1759345668002,0.00607629,117430.0,117420.0,9.16599749]
[1759345669626,0.00299629,117430.0,117420.0,9.16599749]
[1759345673750,0.00606629,117430.0,117420.0,9.16599749]
[1759345675265,0.00299629,117430.0,117420.0,9.16599749]
[1759345677060,0.00089629,117430.0,117420.0,9.16599749]
[1759345677736,0.00089629,117430.0,117420.0,9.19386542]
[1759345680296,0.00089629,117430.0,117420.0,9.30912732]
[1759345681431,0.00089629,117430.0,117420.0,9.36984887]
[1759345683680,0.00089629,117430.0,117420.0,9.37984887]
[1759345686134,0.00089629,117430.0,117420.0,9.6515703]
[1759345686602,0.00089629,117430.0,117420.0,9.72754151]
[1759345687051,0.00089629,117430.0,117420.0,9.39509853]
[1759345694979,0.00081947,117430.0,117420.0,9.39509853]
[1759345695583,0.00081947,117430.0,117420.0,9.06469853]
[1759345695830,0.00081947,117430.0,117420.0,9.75001853]
[1759345696934,0.00081947,117430.0,117420.0,9.7221506]
[1759345699870,0.00081947,117430.0,117420.0,9.64617939]
[1759345701052,1e-08,117430.0,117420.0,10.00337485]
[1759345701288,0.0002,117440.0,117430.0,0.17031422]
[1759345701528,0.0002,117440.0,117430.0,8.5370547]
[1759345701731,0.0002,117440.0,117430.0,8.95692961]
[1759345702216,0.00041651,117440.0,117430.0,8.88467434]
[1759345710620,0.00041651,117440.0,117430.0,8.98810972]
[1759345718376,0.00041651,117440.0,117430.0,8.98778972]
[1759345733296,1e-08,117440.0,117430.0,9.38294162]
[1759345733507,0.0002,117450.0,117440.0,0.56622809]
[1759345733756,0.0002,117450.0,117440.0,9.64547035]
[1759345734178,0.0002,117450.0,117440.0,9.64565136]
[1759345734387,0.0002,117450.0,117440.0,9.31686419]
[1759345735608,0.0002,117450.0,117440.0,9.29108772]
[1759345739218,0.00041648,117450.0,117440.0,9.29108772]
[1759345739543,0.00041648,117450.0,117440.0,17.29108772]
[1759345740058,0.00363648,117450.0,117440.0,17.04924772]
[1759345740259,0.00363648,117450.0,117440.0,17.29104772]
[1759345740407,0.00363648,117450.0,117440.0,17.37960772]
[1759345740825,0.00041648,117450.0,117440.0,17.37960772]
[1759345742081,0.00041648,117450.0,117440.0,9.37960772]
[1759345746019,0.00571648,117450.0,117440.0,9.37960772]
[1759345746353,0.00041648,117450.0,117440.0,9.37960772]
[1759345749942,0.00256648,117450.0,117440.0,9.37960772]
[1759345750152,0.00928917,117450.0,117440.0,9.37960772]
[1759345750354,0.00713917,117450.0,117440.0,9.37960772]
[1759345759445,0.00713917,117450.0,117440.0,9.04924772]
[1759345759690,0.00713917,117450.0,117440.0,9.37956772]
[1759345775146,0.00713917,117450.0,117440.0,9.04924772]
[1759345775371,0.01235917,117450.0,117440.0,9.37956772]
[1759345776041,0.00919917,117450.0,117440.0,9.37956772]
[1759345776460,0.00713917,117450.0,117440.0,9.37956772]
[1759345778517,0.00713917,117450.0,117440.0,9.42007677]
[1759345778733,0.00713917,117450.0,117440.0,9.34414144]
[1759345779748,0.00919917,117450.0,117440.0,9.34414144]
[1759345779981,0.00713917,117450.0,117440.0,9.34414144]
[1759345781109,0.00760557,117450.0,117440.0,9.34414144]
[1759345788412,0.00760557,117450.0,117440.0,9.28336981]
[1759345788612,0.00760557,117450.0,117440.0,9.35930514]
[1759345800646,0.00260557,117450.0,117440.0,9.35930514]
[1759345807754,0.02486876,117460.0,117450.0,0.17028522]
[1759345807963,0.0232959,117460.0,117450.0,1.22274449]
[1759345808163,0.0232959,117460.0,117450.0,1.31130449]
[1759345808574,0.02351233,117460.0,117450.0,1.33686926]
[1759345808774,0.02351233,117460.0,117450.0,1.3345918]
[1759345808983,0.02351233,117460.0,117450.0,1.33477281]
[1759345816049,0.02351233,117460.0,117450.0,1.00449281]
[1759345816234,0.02351233,117460.0,117450.0,1.33477281]
[1759345824172,0.02351233,117460.0,117450.0,1.33473281]
[1759345827916,0.02351233,117460.0,117450.0,1.22460855]
[1759345828143,0.01821233,117460.0,117450.0,9.5567067]
[1759345828386,0.01821233,117460.0,117450.0,9.58252292]
[1759345828603,0.01821233,117460.0,117450.0,9.64329981]
[1759345829846,0.01621222,117470.0,117460.0,0.51027073]
[1759345830065,0.01621222,117470.0,117460.0,9.23728103]
[1759345830263,0.01621222,117470.0,117460.0,9.2113341]
[1759345830491,0.01621222,117470.0,117460.0,9.29805792]
[1759345830696,0.01621222,117470.0,117460.0,9.32361542]
[1759345830915,0.01621222,117470.0,117460.0,9.32379643]
[1759345831901,0.01621222,117470.0,117460.0,9.34281812]
[1759345835652,0.01642864,117470.0,117460.0,9.34281812]
[1759345837852,0.01642864,117470.0,117460.0,9.28204123]
[1759345840111,0.01642864,117470.0,117460.0,9.35797656]
[1759345842712,0.01846864,117470.0,117460.0,9.09034963]
[1759345842922,0.02155864,117470.0,117460.0,9.77466963]
[1759345843340,0.01642864,117470.0,117460.0,9.77466963]
[1759345843594,0.01642864,117470.0,117460.0,9.6987343]
[1759345843807,0.01642864,117470.0,117460.0,9.0144143]
[1759345844009,0.01642864,117470.0,117460.0,9.6987343]
[1759345849412,0.01597703,117470.0,117460.0,9.77466963]
[1759345850999,0.01597703,117470.0,117460.0,9.80094784]
[1759345854803,0.01597703,117470.0,117460.0,9.86094784]
[1759345859179,0.01597703,117470.0,117460.0,9.83466963]
[1759345859385,0.01597703,117470.0,117460.0,9.15034963]
[1759345859595,0.02098703,117470.0,117460.0,9.83458963]
[1759345860208,0.01796703,117470.0,117460.0,9.83458963]
[1759345860413,0.00016671,117470.0,117460.0,9.83458963]
[1759345860627,0.00016671,117470.0,117460.0,9.7586543]
[1759345862177,0.00016671,117470.0,117460.0,9.0744143]
[1759345862393,0.00016671,117470.0,117460.0,9.7586543]
[1759345863419,0.00016671,117470.0,117460.0,9.8346954]
[1759345865244,0.00215671,117470.0,117460.0,9.8346954]
[1759345865443,0.00517671,117470.0,117460.0,9.8346954]
[1759345865760,0.00016671,117470.0,117460.0,9.8346954]
[1759345868696,0.00517671,117470.0,117460.0,9.1504554]
[1759345869201,0.00517671,117470.0,117460.0,9.8346554]
[1759345869656,0.00517671,117470.0,117460.0,9.1504554]
[1759345869891,0.00517671,117470.0,117460.0,1.02163203]
[1759345870110,0.00517671,117470.0,117460.0,0.91574283]
[1759345871516,0.00517671,117470.0,117460.0,0.97656959]
[1759345876665,0.34517671,117470.0,117460.0,0.58542073]
[1759345876847,0.34517671,117470.0,117460.0,0.66952468]
[1759345876848,0.00517671,117470.0,117460.0,0.66952468]
[1759345877079,0.00517671,117470.0,117460.0,0.76421882]
[1759345877711,0.03017671,117470.0,117460.0,0.2554]
[1759345877928,0.74043294,117470.0,117460.0,0.2554]
[1759345878150,0.76599776,117470.0,117460.0,0.49692]
[1759345879438,0.42599776,117470.0,117460.0,0.49692]
[1759345879655,0.51110776,117470.0,117460.0,0.2554]
[1759345879860,0.59981923,117470.0,117460.0,0.2554]
[1759345881404,0.93981923,117470.0,117460.0,0.2554]
[1759345883862,1.00263728,117470.0,117460.0,0.2554]
[1759345885622,1.33275728,117470.0,117460.0,0.2554]
[1759345885831,1.00263728,117470.0,117460.0,0.2554]
[1759345886079,1.15548581,117470.0,117460.0,0.2554]
[1759345892342,1.60098581,117470.0,117460.0,0.2554]
[1759345893691,1.40098581,117470.0,117460.0,0.2554]
[1759345893902,1.60098581,117470.0,117460.0,0.2554]
[1759345894112,1.68969728,117470.0,117460.0,0.2554]
[1759345896077,1.68969728,117470.0,117460.0,0.02976012]
[1759345898530,1.24419728,117470.0,117460.0,0.02976012]
[1759345899196,1.04419728,117470.0,117460.0,0.02976012]
[1759345899421,1.24419728,117470.0,117460.0,0.02976012]
[1759345900977,1.04419728,117470.0,117460.0,0.02976012]
[1759345901186,1.24419728,117470.0,117460.0,0.02976012]
[1759345901660,1.04419728,117470.0,117460.0,0.02976012]
[1759345901877,1.24419728,117470.0,117460.0,0.02976012]
[1759345902287,1.04419728,117470.0,117460.0,0.02976012]
[1759345902501,1.24419728,117470.0,117460.0,0.02976012]
[1759345903135,1.04419728,117470.0,117460.0,0.02976012]
[1759345903343,1.24419728,117470.0,117460.0,0.02976012]
[1759345903987,1.04419728,117470.0,117460.0,0.02976012]
[1759345904198,1.24419728,117470.0,117460.0,0.02976012]
[1759345904834,1.04419728,117470.0,117460.0,0.02976012]
[1759345905038,1.24419728,117470.0,117460.0,0.02976012]
[1759345905483,1.04419728,117470.0,117460.0,0.02976012]
[1759345905690,1.24419728,117470.0,117460.0,0.02976012]
[1759345908743,1.04419728,117470.0,117460.0,0.02976012]
[1759345908953,1.24419728,117470.0,117460.0,0.02976012]
[1759345909348,1.33275728,117470.0,117460.0,0.02976012]
[1759345909749,1.00263728,117470.0,117460.0,0.02976012]
[1759345909957,1.33275728,117470.0,117460.0,0.02976012]
[1759345910186,1.34073513,117470.0,117460.0,0.02976012]
[1759345914604,1.14073513,117470.0,117460.0,0.02976012]
[1759345914818,1.34073513,117470.0,117460.0,0.02976012]
[1759345915923,1.14073513,117470.0,117460.0,0.02976012]
[1759345916123,1.34073513,117470.0,117460.0,0.02976012]
[1759345916340,1.14073513,117470.0,117460.0,0.02976012]
[1759345916547,1.34073513,117470.0,117460.0,0.02976012]
[1759345917367,1.31517031,117470.0,117460.0,0.02976012]
[1759345918342,1.30719246,117470.0,117460.0,0.02976012]
[1759345918627,1.10719246,117470.0,117460.0,0.02976012]
[1759345918808,1.30719246,117470.0,117460.0,0.02976012]
[1759345920196,1.13693623,117470.0,117460.0,0.02976012]
[1759345920431,1.30719246,117470.0,117460.0,0.02976012]
[1759345921164,1.10719246,117470.0,117460.0,0.02976012]
[1759345921373,1.30719246,117470.0,117460.0,0.02976012]
[1759345922215,1.10719246,117470.0,117460.0,0.02976012]
[1759345922425,1.30719246,117470.0,117460.0,0.02976012]
[1759345924792,1.10719246,117470.0,117460.0,0.02976012]
[1759345925029,1.30719246,117470.0,117460.0,0.02976012]
[1759345925445,1.10719246,117470.0,117460.0,0.02976012]
[1759345925834,1.30719246,117470.0,117460.0,0.02976012]
[1759345926855,1.10719246,117470.0,117460.0,0.02976012]
[1759345927105,1.30719246,117470.0,117460.0,0.02976012]
[1759345927595,0.97707246,117470.0,117460.0,0.02976012]
[1759345927799,1.21859246,117470.0,117460.0,0.02976012]
[1759345928000,1.30715246,117470.0,117460.0,0.02976012]
[1759345931835,1.10715246,117470.0,117460.0,0.02976012]
[1759345932037,1.30715246,117470.0,117460.0,0.02976012]
[1759345932685,1.10715246,117470.0,117460.0,0.02976012]
[1759345932871,1.30715246,117470.0,117460.0,0.02976012]
[1759345933406,1.10715246,117470.0,117460.0,0.02976012]
[1759345933596,1.30715246,117470.0,117460.0,0.02976012]
[1759345936651,1.10715246,117470.0,117460.0,0.02976012]
[1759345936866,1.30715246,117470.0,117460.0,0.02976012]
[1759345938959,1.10715246,117470.0,117460.0,0.02976012]
[1759345939143,1.30715246,117470.0,117460.0,0.02976012]
[1759345939551,1.32386846,117470.0,117460.0,0.02976012]
[1759345939757,1.52386846,117470.0,117460.0,0.02976012]
[1759345939901,1.32386846,117470.0,117460.0,0.02976012]
[1759345940112,1.52386846,117470.0,117460.0,0.02976012]
[1759345942478,1.32386846,117470.0,117460.0,0.02976012]
[1759345943103,1.52386846,117470.0,117460.0,0.02976012]
[1759345944364,1.32386846,117470.0,117460.0,0.02976012]
[1759345944627,1.52386846,117470.0,117460.0,0.02976012]
[1759345946020,1.32386846,117470.0,117460.0,0.02976012]
[1759345946227,1.52386846,117470.0,117460.0,0.02976012]
[1759345947501,1.54943788,117470.0,117460.0,0.02976012]
[1759345948311,1.34943788,117470.0,117460.0,0.02976012]
[1759345948565,1.54943788,117470.0,117460.0,0.02976012]